bitfinex-derivatives/quotes_BTCF0:USTF0_20250422
["timestamp","ask_amount","ask_price","bid_price","bid_amount"]
[1745318585637,0.2328822,88595.0,88594.0,0.11457538]
[1745318585836,0.3307822,88595.0,88594.0,0.11457538]
[1745318586246,0.3307822,88595.0,88594.0,0.17917538]
[1745318586650,0.3307822,88595.0,88594.0,0.18117538]
[1745318587543,0.3307822,88595.0,88594.0,0.18317538]
[1745318588150,0.3307822,88595.0,88594.0,0.18417538]
[1745318589656,0.3307822,88595.0,88594.0,0.15117648]
[1745318590138,0.3307822,88595.0,88594.0,0.03829308]
[1745318590539,0.3307822,88595.0,88594.0,0.00669308]
[1745318590845,0.3307822,88595.0,88594.0,0.11957648]
[1745318591042,0.3307822,88595.0,88594.0,0.00569308]
[1745318591251,0.5227822,88595.0,88594.0,0.11857648]
[1745318591551,0.5227822,88595.0,88594.0,0.11657648]
[1745318591750,0.5227822,88595.0,88594.0,0.00469308]
[1745318592144,0.5227822,88595.0,88594.0,0.00369308]
[1745318592340,0.5247822,88595.0,88594.0,0.11457648]
[1745318592655,0.5237822,88595.0,88594.0,0.11457648]
[1745318592846,0.5247822,88595.0,88594.0,0.11457648]
[1745318593554,0.5247822,88595.0,88594.0,0.00169308]
[1745318593760,0.5247822,88595.0,88594.0,0.11457648]
[1745318595160,0.3327822,88595.0,88594.0,0.11457648]
[1745318595857,0.3327822,88595.0,88594.0,0.14547648]
[1745318596158,0.2998822,88595.0,88594.0,0.14547648]
[1745318596350,0.2988822,88595.0,88594.0,0.14547648]
[1745318596550,0.2998822,88595.0,88594.0,0.14547648]
[1745318596957,0.2348822,88595.0,88594.0,0.14547648]
[1745318597458,0.2674822,88595.0,88594.0,0.14547648]
[1745318597959,0.2674822,88595.0,88594.0,0.17637648]
[1745318600650,0.2981822,88595.0,88594.0,0.06349308]
[1745318600849,0.1128924,88587.0,88585.0,0.0564474]
[1745318601050,0.1228924,88587.0,88586.0,0.14466286]
[1745318601255,0.1878924,88587.0,88586.0,0.14466286]
[1745318601855,0.1878924,88587.0,88586.0,0.00016926]
[1745318602151,0.2185924,88587.0,88586.0,0.00116926]
[1745318603148,0.4105924,88587.0,88586.0,0.00116926]
[1745318603658,0.41912532,88587.0,88586.0,0.00116926]
[1745318603857,0.41912532,88587.0,88586.0,0.00016926]
[1745318604363,0.41912532,88587.0,88573.0,0.1693644]
[1745318604364,0.1693666,88574.0,88573.0,0.1693644]
[1745318604658,0.1793666,88574.0,88573.0,0.056455]
[1745318604853,0.2419666,88574.0,88573.0,0.82296533]
[1745318605055,0.2419666,88574.0,88573.0,0.88796533]
[1745318605253,0.25300334,88574.0,88573.0,0.88796533]
[1745318605453,0.2419666,88574.0,88573.0,0.89196533]
[1745318605653,0.2419666,88574.0,88573.0,0.89496533]
[1745318606250,0.2419666,88574.0,88573.0,0.61238033]
[1745318606557,0.2725666,88574.0,88573.0,0.61238033]
[1745318607050,0.2725666,88574.0,88573.0,0.0397]
[1745318607249,0.4645666,88574.0,88573.0,0.0397]
[1745318611459,0.4339666,88574.0,88573.0,0.0397]
[1745318611767,0.4339666,88574.0,88573.0,0.1526102]
[1745318611768,0.4017666,88574.0,88573.0,0.1526102]
[1745318611953,0.4679266,88574.0,88573.0,0.91912053]
[1745318612161,0.2859266,88574.0,88573.0,0.94972053]
[1745318613855,0.2858466,88574.0,88573.0,0.94972053]
[1745318614059,0.2859266,88574.0,88573.0,0.94972053]
[1745318614362,0.1426151,88574.0,88573.0,1.14172053]
[1745318614963,0.0665351,88574.0,88573.0,1.14172053]
[1745318617155,0.0970351,88574.0,88573.0,1.14172053]
[1745318618665,0.0665351,88574.0,88573.0,1.14172053]
[1745318619968,0.0994351,88574.0,88573.0,1.14172053]
[1745318622461,0.0894351,88574.0,88573.0,1.14172053]
[1745318632172,0.0894351,88574.0,88573.0,0.94972053]
[1745318633173,0.0894351,88574.0,88573.0,1.14172053]
[1745318637978,0.1196351,88574.0,88573.0,1.14172053]
[1745318638178,0.0894351,88574.0,88573.0,1.14172053]
[1745318639276,0.0894351,88574.0,88573.0,0.94972053]
[1745318640476,0.1094351,88574.0,88573.0,0.94972053]
[1745318640775,0.1402351,88574.0,88573.0,0.91912053]
[1745318640977,0.1402351,88574.0,88573.0,0.88642053]
[1745318641676,0.1402351,88574.0,88573.0,0.91802053]
[1745318642775,0.1402351,88574.0,88573.0,0.95072053]
[1745318643173,0.1402351,88574.0,88573.0,0.94772053]
[1745318643580,0.1094351,88574.0,88573.0,0.94772053]
[1745318643875,0.1094351,88574.0,88573.0,0.94672053]
[1745318644070,0.1094351,88574.0,88573.0,0.94772053]
[1745318644271,0.1094351,88574.0,88573.0,0.94572053]
[1745318645278,0.1094351,88574.0,88573.0,0.94472053]
[1745318645779,0.1094351,88574.0,88573.0,0.94572053]
[1745318646181,0.1407351,88574.0,88573.0,0.94572053]
[1745318646878,0.1094351,88574.0,88573.0,0.94572053]
[1745318647978,0.1094351,88574.0,88573.0,0.94472053]
[1745318648180,0.1094351,88574.0,88573.0,0.94572053]
[1745318648484,0.1094351,88574.0,88573.0,0.94472053]
[1745318648674,0.1094351,88574.0,88573.0,0.94572053]
[1745318651786,0.1094351,88574.0,88573.0,0.97672053]
[1745318652288,0.1094351,88574.0,88573.0,1.16872053]
[1745318653280,0.1094351,88574.0,88573.0,0.97672053]
[1745318653681,0.1658889,88574.0,88573.0,0.97672053]
[1745318654269,0.1658889,88574.0,88573.0,1.16872053]
[1745318655181,0.05298,88574.0,88573.0,1.16872053]
[1745318655886,0.1658889,88574.0,88573.0,1.16872053]
[1745318656887,0.05298,88574.0,88573.0,1.16872053]
[1745318657786,0.1658889,88574.0,88573.0,1.16872053]
[1745318657987,0.05298,88574.0,88573.0,1.16872053]
[1745318658686,0.02008,88574.0,88573.0,1.16872053]
[1745318658990,0.0302,88579.0,88575.0,0.0564538]
[1745318659185,0.0302,88579.0,88578.0,0.87941413]
[1745318659487,0.0302,88579.0,88578.0,0.89434662]
[1745318659690,0.0302,88579.0,88578.0,0.95634662]
[1745318660087,0.0302,88579.0,88578.0,1.14834662]
[1745318661479,0.0302,88579.0,88578.0,1.15034662]
[1745318662579,0.0302,88579.0,88578.0,1.13541413]
[1745318662779,0.0302,88579.0,88578.0,1.13741413]
[1745318663390,0.0302,88579.0,88578.0,1.13541413]
[1745318663690,0.0302,88579.0,88578.0,1.13741413]
[1745318664093,0.0302,88579.0,88578.0,1.13541413]
[1745318664283,0.0302,88579.0,88578.0,1.13741413]
[1745318667192,0.1431026,88579.0,88578.0,1.13741413]
[1745318667695,0.0302,88579.0,88578.0,1.13741413]
[1745318668594,0.1431026,88579.0,88578.0,1.13741413]
[1745318669296,0.1431026,88579.0,88578.0,0.5970338]
[1745318669593,0.1431026,88579.0,88578.0,0.3089038]
[1745318669789,0.2084026,88579.0,88578.0,0.3089038]
[1745318670290,0.2084026,88579.0,88578.0,0.1785038]
[1745318670979,0.1754026,88579.0,88578.0,0.1785038]
[1745318671897,0.1754026,88579.0,88578.0,0.1775038]
[1745318672390,0.1754026,88579.0,88578.0,0.1755038]
[1745318672984,0.1754026,88579.0,88578.0,0.1765038]
[1745318675295,0.1754026,88579.0,88578.0,0.3685038]
[1745318677000,0.2183026,88579.0,88578.0,0.3685038]
[1745318678400,0.2183026,88579.0,88578.0,0.3695038]
[1745318678598,0.2183026,88579.0,88578.0,0.3685038]
[1745318678795,0.2183026,88579.0,88578.0,0.3695038]
[1745318688104,0.2183026,88579.0,88578.0,0.5956338]
[1745318691506,0.1854026,88579.0,88578.0,1.13601413]
[1745318691808,0.1531026,88579.0,88578.0,1.16621413]
[1745318692007,0.1431026,88579.0,88578.0,1.16621413]
[1745318692305,0.1431826,88579.0,88578.0,1.16621413]
[1745318693106,0.1431826,88579.0,88578.0,1.16521413]
[1745318693307,0.1431826,88579.0,88578.0,1.16721413]
[1745318693808,0.1431826,88579.0,88578.0,1.13701413]
[1745318695207,0.1431826,88579.0,88578.0,1.13501413]
[1745318695709,0.1431826,88579.0,88578.0,1.13401413]
[1745318695906,0.1431826,88579.0,88578.0,1.13601413]
[1745318696811,0.1431826,88579.0,88578.0,1.13501413]
[1745318696998,0.1431826,88579.0,88578.0,1.13701413]
[1745318697705,0.1431826,88579.0,88578.0,1.13401413]
[1745318697904,0.1431826,88579.0,88578.0,1.13501413]
[1745318698503,0.1431826,88579.0,88578.0,1.13601413]
[1745318698811,0.1431826,88579.0,88578.0,1.13501413]
[1745318699011,0.1431826,88579.0,88578.0,1.13601413]
[1745318700911,0.1431826,88579.0,88578.0,1.13501413]
[1745318701110,0.1431826,88579.0,88578.0,1.13701413]
[1745318701612,0.1431826,88579.0,88578.0,1.13601413]
[1745318702009,0.1431826,88579.0,88578.0,1.13501413]
[1745318702209,0.1431826,88579.0,88578.0,1.13601413]
[1745318702409,0.1431826,88579.0,88578.0,1.13501413]
[1745318703815,0.1431826,88579.0,88578.0,1.13401413]
[1745318704017,0.1431826,88579.0,88578.0,1.13601413]
[1745318704518,0.1431826,88579.0,88578.0,1.13501413]
[1745318704708,0.1431826,88579.0,88578.0,1.13601413]
[1745318705610,0.1431826,88579.0,88578.0,1.13501413]
[1745318705814,0.1431826,88579.0,88578.0,1.13601413]
[1745318707123,0.1431826,88579.0,88578.0,1.13401413]
[1745318707419,0.1431826,88579.0,88578.0,1.13601413]
[1745318707621,0.1431826,88579.0,88578.0,1.13501413]
[1745318707819,0.1431826,88579.0,88578.0,1.13701413]
[1745318708020,0.1431826,88579.0,88578.0,1.13501413]
[1745318709421,0.1431826,88579.0,88578.0,1.13401413]
[1745318709612,0.1431826,88579.0,88578.0,1.13501413]
[1745318711223,0.1129826,88579.0,88578.0,1.13501413]
[1745318711721,0.1433826,88579.0,88578.0,1.13501413]
[1745318712923,0.00010801,88584.0,88583.0,0.1128975]
[1745318713227,0.00010801,88584.0,88583.0,1.26260783]
[1745318713521,0.0564461,88588.0,88587.0,0.1128924]
[1745318713723,0.0564461,88588.0,88587.0,0.94010273]
[1745318713916,0.0872461,88588.0,88587.0,0.94010273]
[1745318714313,0.0872461,88588.0,88587.0,1.13210273]
[1745318714922,0.0872461,88588.0,88587.0,1.13310273]
[1745318715422,0.0872461,88588.0,88587.0,1.13410273]
[1745318716417,0.0308,88588.0,88587.0,1.13410273]
[1745318716918,0.0308,88588.0,88587.0,1.13310273]
[1745318717109,0.0308,88588.0,88587.0,1.13410273]
[1745318717310,0.0308,88588.0,88587.0,1.13510273]
[1745318729643,0.1436911,88588.0,88587.0,1.13510273]
[1745318729841,0.1129,88581.0,88580.0,0.00026]
[1745318730143,0.1329,88581.0,88580.0,0.1129013]
[1745318730733,0.2273,88581.0,88580.0,0.1129013]
[1745318730945,0.2273,88581.0,88580.0,0.1169013]
[1745318731244,0.2273,88581.0,88580.0,0.3089013]
[1745318731542,0.2273,88581.0,88580.0,0.3405013]
[1745318731744,0.2273,88581.0,88580.0,0.3725013]
[1745318732850,0.2273,88581.0,88580.0,0.3685013]
[1745318733345,0.2283,88581.0,88580.0,0.3675013]
[1745318734044,0.2273,88581.0,88580.0,0.3675013]
[1745318736049,0.2273,88581.0,88580.0,0.3685013]
[1745318736547,0.2273,88581.0,88580.0,0.3695013]
[1745318737144,0.2273,88581.0,88580.0,0.3685013]
[1745318739253,0.2273,88581.0,88580.0,0.3675013]
[1745318739443,0.2273,88581.0,88580.0,0.3685013]
[1745318740050,0.2273,88581.0,88580.0,0.3675013]
[1745318740249,0.2273,88581.0,88580.0,0.3685013]
[1745318742952,0.2273,88581.0,88580.0,0.3695013]
[1745318743454,0.2273,88581.0,88580.0,0.3685013]
[1745318745157,0.2273,88581.0,88580.0,0.3675013]
[1745318745953,0.2273,88581.0,88580.0,0.3695013]
[1745318746459,0.1636,88581.0,88580.0,1.13501163]
[1745318746758,0.1636,88581.0,88580.0,1.13601163]
[1745318754053,0.1636,88581.0,88580.0,1.10401163]
[1745318754259,0.1944,88581.0,88580.0,0.3069013]
[1745318755358,0.1944,88581.0,88580.0,0.3059013]
[1745318755563,0.1944,88581.0,88580.0,0.3069013]
[1745318755864,0.1944,88581.0,88580.0,0.3059013]
[1745318756054,0.1954,88581.0,88580.0,0.3059013]
[1745318756254,0.1964,88581.0,88580.0,0.3049013]
[1745318756661,0.1954,88581.0,88580.0,0.3049013]
[1745318757967,0.1944,88581.0,88580.0,0.3049013]
[1745318759067,0.1944,88581.0,88580.0,0.3059013]
[1745318759766,0.1944,88581.0,88580.0,0.3049013]
[1745318762157,0.1944,88581.0,88580.0,0.3059013]
[1745318762362,0.1944,88581.0,88580.0,0.3069013]
[1745318764275,0.1954,88581.0,88580.0,0.3059013]
[1745318764477,0.1954,88581.0,88580.0,0.3049013]
[1745318764661,0.1964,88581.0,88580.0,0.3049013]
[1745318766474,0.1954,88581.0,88580.0,0.3049013]
[1745318768075,0.1944,88581.0,88580.0,0.3049013]
[1745318771872,0.1964,88581.0,88580.0,0.3049013]
[1745318772477,0.1954,88581.0,88580.0,0.3049013]
[1745318772669,0.1964,88581.0,88580.0,0.3049013]
[1745318773876,0.1954,88581.0,88580.0,0.3049013]
[1745318774078,0.1964,88581.0,88580.0,0.3049013]
[1745318774670,0.1954,88581.0,88580.0,0.3049013]
[1745318774872,0.1964,88581.0,88580.0,0.3049013]
[1745318775579,0.1656,88581.0,88580.0,0.3677013]
[1745318775773,0.1656,88581.0,88580.0,0.3984013]
[1745318776281,0.1656,88581.0,88580.0,1.16491163]
[1745318776480,0.1646,88581.0,88580.0,1.16491163]
[1745318776781,0.1656,88581.0,88580.0,1.16491163]
[1745318786086,0.1646,88581.0,88580.0,1.16491163]
[1745318786288,0.1656,88581.0,88580.0,1.16491163]
[1745318787583,0.1646,88581.0,88580.0,1.16491163]
[1745318787787,0.1656,88581.0,88580.0,1.16491163]
[1745318790887,0.1656,88581.0,88580.0,1.17984009]
[1745318791679,0.1636,88581.0,88580.0,1.16491163]
[1745318794791,0.1646,88581.0,88580.0,1.16491163]
[1745318795591,0.1636,88581.0,88580.0,1.16491163]
[1745318796695,0.1646,88581.0,88580.0,1.16491163]
[1745318797383,0.1636,88581.0,88580.0,1.16491163]
[1745318800595,0.0507,88581.0,88580.0,1.16491163]
[1745318800794,0.0307,88581.0,88580.0,1.16491163]
[1745318801499,0.03078,88581.0,88580.0,1.16491163]
[1745318801703,0.03078,88581.0,88580.0,1.1810522]
[1745318802294,0.03078,88581.0,88580.0,1.1820522]
[1745318802496,8e-05,88581.0,88580.0,1.5428522]
[1745318802708,8e-05,88581.0,88580.0,1.65850591]
[1745318802998,0.0318,88589.0,88588.0,0.1128911]
[1745318803199,0.0318,88589.0,88588.0,0.894542]
[1745318803786,0.0318,88589.0,88588.0,0.956242]
[1745318804191,0.0318,88589.0,88588.0,1.148242]
[1745318805103,0.0318,88589.0,88588.0,1.149242]
[1745318806801,0.0318,88589.0,88588.0,1.150242]
[1745318807406,0.0318,88589.0,88588.0,1.151242]
[1745318808100,0.0318,88589.0,88588.0,1.150242]
[1745318808300,0.1446898,88589.0,88588.0,1.153242]
[1745318810009,0.0318,88589.0,88588.0,1.153242]
[1745318811007,0.1446898,88589.0,88588.0,1.153242]
[1745318816207,0.1446898,88589.0,88588.0,0.21214057]
[1745318816405,0.1546898,88589.0,88588.0,0.21214057]
[1745318816706,0.1854898,88589.0,88588.0,0.21214057]
[1745318822510,0.1854898,88589.0,88588.0,0.197]
[1745318824110,0.1884898,88589.0,88588.0,0.194]
[1745318824500,0.1914898,88589.0,88588.0,0.192]
[1745318825510,0.1884898,88589.0,88588.0,0.192]
[1745318825807,0.1914898,88589.0,88588.0,0.192]
[1745318828029,0.1884898,88589.0,88588.0,0.192]
[1745318828229,0.1914898,88589.0,88588.0,0.192]
[1745318828622,0.1884898,88589.0,88588.0,0.192]
[1745318828823,0.1904898,88589.0,88588.0,0.192]
[1745318829022,0.1894898,88589.0,88588.0,0.192]
[1745318831728,0.1874898,88589.0,88588.0,0.192]
[1745318831926,0.1894898,88589.0,88588.0,0.192]
[1745318832126,0.2649698,88589.0,88588.0,0.2251]
[1745318832325,0.2649698,88589.0,88588.0,0.2551]
[1745318832931,0.2649698,88589.0,88588.0,0.3679911]
[1745318834232,0.2341698,88589.0,88588.0,0.3679911]
[1745318835032,0.2341698,88589.0,88588.0,0.38310394]
[1745318835432,0.2331698,88589.0,88588.0,0.38310394]
[1745318837034,0.2311698,88589.0,88588.0,0.38310394]
[1745318839138,0.2311698,88589.0,88588.0,0.3679911]
[1745318839837,0.5919698,88589.0,88588.0,0.3679911]
[1745318840136,0.5919698,88589.0,88588.0,1.13450143]
[1745318841638,0.5919698,88589.0,88588.0,1.14970851]
[1745318842638,0.5164898,88589.0,88588.0,1.14970851]
[1745318842838,0.5919698,88589.0,88588.0,1.14970851]
[1745318843433,0.5919698,88589.0,88588.0,1.13450143]
[1745318846138,0.5919698,88589.0,88588.0,1.14971537]
[1745318846738,0.2311698,88589.0,88588.0,1.14971537]
[1745318847141,0.5919698,88589.0,88588.0,1.14971537]
[1745318853246,0.5164898,88589.0,88588.0,1.14971537]
[1745318853436,0.5919698,88589.0,88588.0,1.14971537]
[1745318853946,0.5919698,88589.0,88588.0,1.13450143]
[1745318860958,0.5919698,88589.0,88588.0,1.14975954]
[1745318863649,0.5919698,88589.0,88588.0,0.60937921]
[1745318863851,0.5919698,88589.0,88588.0,1.14975954]
[1745318864149,0.5919698,88589.0,88588.0,0.92362954]
[1745318864355,0.5919698,88589.0,88588.0,1.14975954]
[1745318868857,0.01108,88589.0,88588.0,1.14975954]
[1745318869051,0.1239698,88589.0,88588.0,1.14975954]
[1745318869251,0.00108,88589.0,88588.0,1.16208758]
[1745318869453,0.001,88589.0,88588.0,1.16208758]
[1745318870058,0.0313,88590.0,88589.0,0.1118898]
[1745318870359,0.00876113,88595.0,88593.0,0.1128834]
[1745318870655,0.03876113,88595.0,88594.0,0.60076648]
[1745318870859,0.15164333,88595.0,88594.0,0.74654988]
[1745318871045,0.15164333,88595.0,88594.0,0.20616955]
[1745318871251,0.15164333,88595.0,88594.0,0.39816955]
[1745318871651,0.18424333,88595.0,88594.0,0.39816955]
[1745318872047,0.18424333,88595.0,88594.0,0.39825246]
[1745318872561,0.18424333,88595.0,88594.0,0.39925246]
[1745318872956,0.18424333,88595.0,88594.0,0.40025246]
[1745318874562,0.25960333,88595.0,88594.0,0.40025246]
[1745318877563,0.25960333,88595.0,88594.0,0.40030658]
[1745318877759,0.25101146,88595.0,88594.0,1.16681691]
[1745318878161,0.17565146,88595.0,88594.0,1.16681691]
[1745318881061,0.03016926,88595.0,88594.0,1.16681691]
[1745318881454,0.14305146,88595.0,88594.0,1.16681691]
[1745318882563,0.17625146,88595.0,88594.0,1.16681691]
[1745318883958,0.17625146,88595.0,88594.0,1.16687986]
[1745318887168,0.1128936,88586.0,88567.0,0.000108]
[1745318887367,0.7536936,88586.0,88585.0,0.11306416]
[1745318887669,0.7536936,88586.0,88585.0,0.87957449]
[1745318888257,0.7536936,88586.0,88585.0,1.10687449]
[1745318888557,0.7536936,88586.0,88585.0,1.07457449]
[1745318889067,0.7536936,88586.0,88585.0,0.95867959]
[1745318889268,0.7536936,88586.0,88585.0,1.07157449]
[1745318889566,0.7536936,88586.0,88585.0,1.07457449]
[1745318889969,0.7536936,88586.0,88585.0,0.30806416]
[1745318890170,0.7556936,88586.0,88585.0,0.30506416]
[1745318890869,0.7556936,88586.0,88585.0,0.19216926]
[1745318891169,0.7576936,88586.0,88585.0,0.19216926]
[1745318891959,0.7577736,88586.0,88585.0,0.19216926]
[1745318892159,0.7577736,88586.0,88585.0,0.30506416]
[1745318892368,0.7567736,88586.0,88585.0,0.30506416]
[1745318892767,0.7567736,88586.0,88585.0,0.19216926]
[1745318893068,0.8209736,88586.0,88585.0,0.19216926]
[1745318893466,0.8219736,88586.0,88585.0,0.19216926]
[1745318893958,0.8179736,88586.0,88585.0,0.19216926]
[1745318894162,0.8219736,88586.0,88585.0,0.19216926]
[1745318894765,0.8199736,88586.0,88585.0,0.19216926]
[1745318894969,0.8219736,88586.0,88585.0,0.19216926]
[1745318895466,0.8199736,88586.0,88585.0,0.19216926]
[1745318895665,0.8219736,88586.0,88585.0,0.19216926]
[1745318895873,0.8972536,88586.0,88585.0,0.19216926]
[1745318896075,0.8962536,88586.0,88585.0,0.30506416]
[1745318896372,0.8642536,88586.0,88585.0,1.07157449]
[1745318896669,0.8652536,88586.0,88585.0,1.07157449]
[1745318896869,0.8652536,88586.0,88585.0,1.13587449]
[1745318897169,0.8632536,88586.0,88585.0,1.13587449]
[1745318897465,0.8622536,88586.0,88585.0,1.13587449]
[1745318897672,0.8642536,88586.0,88585.0,1.13587449]
[1745318898265,0.8622536,88586.0,88585.0,1.13587449]
[1745318898476,0.8642536,88586.0,88585.0,1.13587449]
[1745318899159,0.8622536,88586.0,88585.0,0.99177959]
[1745318899358,0.8944536,88586.0,88585.0,0.99177959]
[1745318899561,0.8944536,88586.0,88585.0,1.00717487]
[1745318899967,0.8944536,88586.0,88585.0,0.20756454]
[1745318901566,0.8944536,88586.0,88585.0,0.19216926]
[1745318902761,0.8944536,88586.0,88585.0,0.20761745]
[1745318903767,0.8944536,88586.0,88585.0,0.19216926]
[1745318907670,0.5336536,88586.0,88585.0,0.19216926]
[1745318907874,0.1129013,88580.0,88579.0,0.0328]
[1745318908072,0.2529013,88580.0,88579.0,0.2248]
[1745318908374,0.3170013,88580.0,88579.0,1.00680777]
[1745318908571,0.3170013,88580.0,88579.0,1.03870777]
[1745318908769,0.3170013,88580.0,88579.0,1.15161037]
[1745318908970,0.3180013,88580.0,88579.0,1.15161037]
[1745318909475,0.3180013,88580.0,88579.0,1.03870777]
[1745318909872,0.3190013,88580.0,88579.0,1.15161037]
[1745318910275,0.6798013,88580.0,88579.0,1.15161037]
[1745318911671,0.6798013,88580.0,88579.0,0.27219744]
[1745318911989,0.1129115,88572.0,88571.0,0.00024926]
[1745318912176,0.7037115,88572.0,88571.0,0.19224926]
[1745318912377,0.8438915,88572.0,88571.0,0.95875959]
[1745318912683,0.8438915,88572.0,88571.0,1.13677239]
[1745318912878,0.8117915,88572.0,88571.0,1.13677239]
[1745318913072,0.8117915,88572.0,88571.0,1.13777239]
[1745318913271,0.7365115,88572.0,88571.0,1.13777239]
[1745318913765,0.7365115,88572.0,88571.0,1.13877239]
[1745318920276,0.3757115,88572.0,88571.0,1.13877239]
[1745318920985,0.7365115,88572.0,88571.0,1.13877239]
[1745318921377,0.3757115,88572.0,88571.0,1.13877239]
[1745318921575,0.7365115,88572.0,88571.0,1.13877239]
[1745318922676,0.3757115,88572.0,88571.0,1.13877239]
[1745318923079,0.7365115,88572.0,88571.0,1.13877239]
[1745318924374,0.7365115,88572.0,88571.0,1.15406604]
[1745318925173,0.7365115,88572.0,88571.0,1.04115324]
[1745318925383,0.7365115,88572.0,88571.0,1.15406604]
[1745318925978,0.7365115,88572.0,88571.0,1.04115324]
[1745318926886,0.3757115,88572.0,88571.0,1.15406604]
[1745318927084,0.7365115,88572.0,88571.0,1.15406604]
[1745318928789,0.7365115,88572.0,88571.0,1.04115324]
[1745318928990,0.7685115,88572.0,88571.0,1.15406604]
[1745318929791,0.7365115,88572.0,88571.0,1.15406604]
[1745318931893,0.7694115,88572.0,88571.0,1.15406604]
[1745318932994,0.7365115,88572.0,88571.0,1.15406604]
[1745318936696,0.3757115,88572.0,88571.0,1.15406604]
[1745318937496,0.3767115,88572.0,88571.0,1.15306604]
[1745318937899,0.3757115,88572.0,88571.0,1.15306604]
[1745318938587,0.3757115,88572.0,88571.0,1.15206604]
[1745318938793,0.3767115,88572.0,88571.0,1.15206604]
[1745318942001,0.3757115,88572.0,88571.0,1.15206604]
[1745318943302,0.3757115,88572.0,88571.0,1.03915324]
[1745318943807,0.3757115,88572.0,88571.0,1.15206604]
[1745318944008,0.4063115,88572.0,88571.0,1.15206604]
[1745318945011,0.4063115,88572.0,88571.0,0.95875959]
[1745318945203,0.4063115,88572.0,88571.0,1.07167239]
[1745318946510,0.4063115,88572.0,88571.0,1.08663758]
[1745318946715,0.7671115,88572.0,88571.0,1.08663758]
[1745318947511,0.4063115,88572.0,88571.0,1.08663758]
[1745318947703,0.7671115,88572.0,88571.0,1.08663758]
[1745318947905,0.7671115,88572.0,88571.0,1.11793758]
[1745318948202,0.7681115,88572.0,88571.0,1.14813758]
[1745318948597,0.7375115,88572.0,88571.0,1.14813758]
[1745318948800,0.7365115,88572.0,88571.0,1.14813758]
[1745318950106,0.3757115,88572.0,88571.0,1.14813758]
[1745318951704,0.3757115,88572.0,88571.0,1.14913758]
[1745318953508,0.4508715,88572.0,88571.0,1.14913758]
[1745318953813,0.4180715,88572.0,88571.0,1.14913758]
[1745318954112,0.3429915,88572.0,88571.0,1.14913758]
[1745318955615,0.1129915,88572.0,88571.0,1.14913758]
[1745318956412,0.1129115,88572.0,88571.0,1.14913758]
[1745318956608,0.1129915,88572.0,88571.0,1.14913758]
[1745318957206,0.1129915,88572.0,88571.0,1.13417239]
[1745318957511,0.1129915,88572.0,88571.0,1.14947439]
[1745318959013,0.1452915,88572.0,88571.0,1.14947439]
[1745318961723,0.1452915,88572.0,88571.0,1.14847439]
[1745318962311,0.1452915,88572.0,88571.0,1.14947439]
[1745318963012,0.2552915,88572.0,88571.0,1.14947439]
[1745318964323,0.2552915,88572.0,88571.0,1.14847439]
[1745318964516,0.2552915,88572.0,88571.0,1.14947439]
[1745318964919,0.2552915,88572.0,88571.0,1.14847439]
[1745318965119,0.2552915,88572.0,88571.0,1.14947439]
[1745318965622,0.2552915,88572.0,88571.0,1.16183856]
[1745318965825,0.2552915,88572.0,88571.0,1.1618386]
[1745318967726,0.1452915,88572.0,88571.0,1.1618386]
[1745318968025,0.00010801,88575.0,88574.0,0.1129089]
[1745318968214,0.00010801,88575.0,88574.0,0.92362181]
[1745318968417,0.112906,88577.0,88576.0,0.1129064]
[1745318968619,0.112906,88577.0,88576.0,0.9959531]
[1745318969015,0.112906,88577.0,88576.0,1.0282531]
[1745318969215,0.1880626,88579.0,88578.0,0.1129038]
[1745318969425,0.1129026,88579.0,88578.0,0.87941413]
[1745318969826,0.1129026,88579.0,88578.0,0.91171413]
[1745318970029,0.1129826,88579.0,88578.0,0.92701613]
[1745318970218,0.1129826,88579.0,88578.0,1.11901613]
[1745318971320,0.1129826,88579.0,88578.0,1.12101613]
[1745318971520,0.1129826,88579.0,88578.0,1.12301613]
[1745318971921,0.00010801,88584.0,88583.0,0.1128962]
[1745318971922,0.0564482,88584.0,88583.0,0.1128962]
[1745318972130,0.0564482,88584.0,88583.0,0.87940653]
[1745318972431,0.0564482,88584.0,88583.0,0.98900853]
[1745318973126,0.0564482,88584.0,88583.0,1.18100853]
[1745318973326,0.0564482,88584.0,88583.0,1.18200853]
[1745318974328,0.0764482,88584.0,88583.0,1.18200853]
[1745318975026,0.02,88584.0,88583.0,1.18300853]
[1745318975327,0.00010801,88585.0,88584.0,0.1128962]
[1745318975518,0.00010801,88585.0,88584.0,0.87940653]
[1745318975718,0.00010801,88585.0,88584.0,0.95710853]
[1745318976229,0.00010801,88585.0,88584.0,1.14910853]
[1745318976430,0.00010801,88585.0,88584.0,1.15010853]
[1745318976930,0.1693379,88588.0,88587.0,0.1128924]
[1745318977128,0.1793379,88588.0,88587.0,0.87940273]
[1745318977433,0.1793379,88588.0,88587.0,0.4014224]
[1745318977919,0.2101379,88588.0,88587.0,0.3390224]
[1745318978123,0.2101379,88588.0,88587.0,0.5320224]
[1745318978623,0.2101379,88588.0,88587.0,0.194]
[1745318978929,0.2101379,88588.0,88587.0,0.3058924]
[1745318979120,0.2101379,88588.0,88587.0,0.3048924]
[1745318981127,0.2111379,88588.0,88587.0,0.3048924]
[1745318981624,0.2101379,88588.0,88587.0,0.3048924]
[1745318982215,0.2111379,88588.0,88587.0,0.3048924]
[1745318983826,0.2101379,88588.0,88587.0,0.3048924]
[1745318988520,0.2427379,88588.0,88587.0,0.3048924]
[1745318991928,0.2427379,88588.0,88587.0,0.192]
[1745318992127,0.2427379,88588.0,88587.0,0.3048924]
[1745318992423,0.1129038,88578.0,88577.0,0.0564525]
[1745318992628,0.1129089,88574.0,88573.0,0.2330602]
[1745318992931,0.1229089,88574.0,88573.0,0.2330602]
[1745318993131,0.1551089,88574.0,88573.0,1.19157053]
[1745318994836,0.1551089,88574.0,88573.0,1.19257053]
[1745318995937,0.1551089,88574.0,88573.0,1.19357053]
[1745318997633,0.1551089,88574.0,88573.0,0.194]
[1745318997840,0.1864089,88574.0,88573.0,0.194]
[1745318998431,0.1864089,88574.0,88573.0,0.3069102]
[1745318998738,0.1864089,88574.0,88573.0,0.3059102]
[1745318999426,0.1864089,88574.0,88573.0,0.3049102]
[1745318999625,0.1864089,88574.0,88573.0,0.3708102]
[1745319000332,0.1874089,88574.0,88573.0,0.3708102]
[1745319000525,0.1874089,88574.0,88573.0,0.2253]
[1745319000732,0.1874089,88574.0,88573.0,0.3382102]
[1745319001737,0.1874089,88574.0,88573.0,0.2253]
[1745319002031,0.1864089,88574.0,88573.0,0.2263]
[1745319002632,0.1864089,88574.0,88573.0,0.2253]
[1745319002832,0.1864089,88574.0,88573.0,0.3382102]
[1745319003630,0.1864089,88574.0,88573.0,0.3685102]
[1745319004736,0.1551089,88574.0,88573.0,0.3685102]
[1745319005940,0.1551089,88574.0,88573.0,0.3695102]
[1745319007231,0.5159089,88574.0,88573.0,0.3695102]
[1745319007632,0.1551089,88574.0,88573.0,0.3695102]